bitfinex/quotes_BTCUSD_20251212
["timestamp","ask_amount","ask_price","bid_price","bid_amount"]
[1765543442483,0.87980002,92161.0,92160.0,0.00118458]
[1765543444459,0.90893815,92161.0,92160.0,0.00118458]
[1765543445275,0.91904477,92161.0,92160.0,0.00118458]
[1765543445504,0.88990664,92161.0,92160.0,0.00118458]
[1765543446722,0.59920664,92161.0,92160.0,0.02412458]
[1765543447135,0.88990664,92161.0,92160.0,0.02412458]
[1765543447336,0.88990664,92161.0,92160.0,0.00118458]
[1765543447337,0.87980002,92161.0,92160.0,0.00118458]
[1765543449754,0.91016494,92161.0,92160.0,0.00118458]
[1765543450118,0.91016494,92161.0,92160.0,1e-08]
[1765543450119,2.18273594,92161.0,92160.0,1e-08]
[1765543450714,2.17473594,92161.0,92160.0,1e-08]
[1765543451126,2.15447448,92161.0,92160.0,1e-08]
[1765543451332,2.16347448,92161.0,92160.0,1e-08]
[1765543451671,2.15547448,92161.0,92160.0,1e-08]
[1765543452042,1.29103548,92161.0,92160.0,1e-08]
[1765543458298,1.18132048,92161.0,92160.0,1e-08]
[1765543459470,1.07151148,92161.0,92160.0,1e-08]
[1765543460104,0.89090348,92161.0,92160.0,1e-08]
[1765543461452,0.87378348,92161.0,92160.0,1e-08]
[1765543461657,0.89090348,92161.0,92160.0,1e-08]
[1765543463030,0.87378348,92161.0,92160.0,1e-08]
[1765543463259,0.59010002,92161.0,92160.0,0.03864001]
[1765543463443,0.88080002,92161.0,92160.0,0.03864001]
[1765543464092,0.87280002,92161.0,92160.0,0.03864001]
[1765543464935,0.88080002,92161.0,92160.0,0.03864001]
[1765543465334,0.88080002,92161.0,92160.0,0.02294]
[1765543465569,0.60224568,92156.0,92155.0,0.00011001]
[1765543465745,0.60224568,92156.0,92155.0,0.00022688]
[1765543465907,0.60224568,92156.0,92155.0,0.01627688]
[1765543466908,0.60824568,92156.0,92155.0,0.01627688]
[1765543467448,0.60824568,92156.0,92155.0,0.03890688]
[1765543467832,0.61424568,92156.0,92155.0,0.03890688]
[1765543474944,0.61424568,92156.0,92155.0,0.00022688]
[1765543475371,0.61424568,92156.0,92155.0,0.03911688]
[1765543477333,0.56974169,92156.0,92155.0,0.03911688]
[1765543477550,0.61424568,92156.0,92155.0,0.03911688]
[1765543486180,0.56974169,92156.0,92155.0,0.03911688]
[1765543487977,0.58686169,92156.0,92155.0,0.03911688]
[1765543489810,0.5368433,92156.0,92155.0,0.03911688]
[1765543494504,0.5197233,92156.0,92155.0,0.03911688]
[1765543494675,0.2461433,92156.0,92155.0,0.03911688]
[1765543495260,0.2290233,92156.0,92155.0,0.03911688]
[1765543495501,0.2461433,92156.0,92155.0,0.03911688]
[1765543496057,0.29064729,92156.0,92155.0,0.03911688]
[1765543497119,0.2461433,92156.0,92155.0,0.03911688]
[1765543497322,0.29064729,92156.0,92155.0,0.03911688]
[1765543500944,0.2461433,92156.0,92155.0,0.03911688]
[1765543503909,0.29064729,92156.0,92155.0,0.00022688]
[1765543504106,0.29064729,92156.0,92155.0,0.04015688]
[1765543505954,0.2461433,92156.0,92155.0,0.04015688]
[1765543506816,0.2290233,92156.0,92155.0,0.04015688]
[1765543507041,0.2461433,92156.0,92155.0,0.04015688]
[1765543508504,0.2290233,92156.0,92155.0,0.04015688]
[1765543508710,0.2461433,92156.0,92155.0,0.04015688]
[1765543510280,0.012,92156.0,92155.0,0.04015688]
[1765543510457,0.012,92156.0,92155.0,0.06185944]
[1765543510666,0.02912,92156.0,92155.0,0.04015688]
[1765543510864,0.02912,92156.0,92155.0,0.25718254]
[1765543511065,0.02912,92156.0,92155.0,0.04015688]
[1765543511487,0.2170233,92156.0,92155.0,0.04015688]
[1765543511859,0.2190233,92156.0,92155.0,0.04015688]
[1765543512057,0.2170233,92156.0,92155.0,0.04015688]
[1765543512466,0.2180233,92156.0,92155.0,0.04015688]
[1765543512854,0.2190233,92156.0,92155.0,0.04015688]
[1765543513055,0.002,92156.0,92155.0,0.04015688]
[1765543513372,0.001,92156.0,92155.0,0.04015688]
[1765543513558,0.001,92156.0,92155.0,0.04115688]
[1765543514057,0.2180233,92156.0,92155.0,0.04115688]
[1765543514795,0.001,92156.0,92155.0,0.04115688]
[1765543514994,0.2180233,92156.0,92155.0,0.04115688]
[1765543515340,0.001,92156.0,92155.0,0.04115688]
[1765543515669,0.001,92156.0,92155.0,0.25818254]
[1765543519711,0.001,92156.0,92155.0,0.25718254]
[1765543520040,0.002,92156.0,92155.0,0.26018254]
[1765543520884,0.001,92156.0,92155.0,0.26018254]
[1765543521317,0.002,92156.0,92155.0,0.26218254]
[1765543522856,0.002,92156.0,92155.0,0.04515688]
[1765543523057,0.002,92156.0,92155.0,0.06685944]
[1765543525557,0.002,92156.0,92155.0,0.04515688]
[1765543526266,0.002,92156.0,92155.0,0.06685944]
[1765543526463,0.002,92156.0,92155.0,0.04515688]
[1765543528838,0.002,92156.0,92155.0,0.06685944]
[1765543530122,0.002,92156.0,92155.0,0.2838851]
[1765543530334,0.002,92156.0,92155.0,0.26218254]
[1765543532627,0.002,92156.0,92155.0,0.30531052]
[1765543533020,0.002,92156.0,92155.0,0.32243052]
[1765543535772,0.002,92156.0,92155.0,0.27930254]
[1765543536186,0.002,92156.0,92155.0,0.32243052]
[1765543538479,0.22781763,92179.0,92176.0,0.2278227]
[1765543538794,0.01084845,92179.0,92177.0,0.21697288]
[1765543539180,0.22781621,92180.0,92177.0,0.21697288]
[1765543539386,0.21696903,92181.0,92178.0,0.21697079]
[1765543539624,0.21696758,92180.0,92177.0,0.22782053]
[1765543539797,0.21696916,92179.0,92177.0,0.22782053]
[1765543540005,0.01084834,92180.0,92178.0,0.21697073]
[1765543540204,0.22781725,92181.0,92178.0,0.21697073]
[1765543540205,0.22781308,92181.0,92178.0,0.21697073]
[1765543540615,0.01084834,92180.0,92176.0,0.22882064]
[1765543540816,0.01084834,92180.0,92178.0,0.21697149]
[1765543541344,0.001,92180.0,92178.0,0.21697149]
[1765543541546,0.001,92180.0,92178.0,0.21797149]
[1765543541948,0.001,92180.0,92179.0,0.21696915]
[1765543542831,0.001,92180.0,92178.0,0.21797149]
[1765543543205,0.21696484,92181.0,92179.0,0.02169691]
[1765543543404,0.22781471,92182.0,92179.0,0.02169691]
[1765543543606,0.001,92180.0,92178.0,0.22782006]
[1765543544154,0.22781325,92181.0,92179.0,0.02169691]
[1765543544356,0.22881325,92181.0,92179.0,0.02169691]
[1765543544577,0.2169668,92180.0,92179.0,0.02169691]
[1765543544768,0.22781514,92180.0,92177.0,0.21697357]
[1765543544926,0.22781312,92181.0,92178.0,0.21696935]
[1765543545134,0.22781312,92181.0,92178.0,0.21796935]
[1765543545561,0.22781312,92181.0,92178.0,0.21696935]
[1765543545759,0.01084822,92181.0,92179.0,0.21696867]
[1765543546066,0.21695726,92185.0,92182.0,0.21696137]
[1765543546383,0.21694802,92188.0,92185.0,0.21695483]
[1765543546589,0.01712,92187.0,92184.0,0.22780339]
[1765543546744,0.23407159,92187.0,92184.0,0.22780339]
[1765543547127,0.21695458,92186.0,92183.0,0.22780338]
[1765543547467,0.006,92188.0,92185.0,0.001]
[1765543547664,0.003,92188.0,92187.0,0.21695032]
[1765543548150,0.003,92188.0,92185.0,0.22880269]
[1765543548151,0.003,92188.0,92185.0,0.01184775]
[1765543548504,0.21695047,92187.0,92185.0,0.001]
[1765543548706,0.22779595,92188.0,92185.0,0.22880062]
[1765543548894,0.01084739,92188.0,92185.0,0.22880062]
[1765543549096,0.22779511,92190.0,92186.0,0.01084763]
[1765543549300,0.21694562,92189.0,92186.0,0.22779925]
[1765543550212,0.22779511,92190.0,92187.0,0.21695012]
[1765543550398,0.22779263,92191.0,92187.0,0.01084751]
[1765543550603,0.01084692,92192.0,92189.0,0.2169446]
[1765543551253,0.01084692,92192.0,92190.0,0.21694324]
[1765543551614,0.22878606,92192.0,92189.0,0.01084728]
[1765543551821,0.22878606,92192.0,92189.0,0.22779244]
[1765543552241,0.01184692,92192.0,92190.0,0.21694265]
[1765543552712,0.001,92192.0,92191.0,0.21694091]
[1765543553164,0.02796645,92196.0,92194.0,0.21693319]
[1765543553355,0.24489629,92196.0,92194.0,0.21693319]
[1765543553732,0.01712,92196.0,92195.0,0.2169315]
[1765543553932,0.01712,92196.0,92194.0,0.21693319]
[1765543554176,0.01084575,92202.0,92195.0,0.01084657]
[1765543554383,0.01712,92200.0,92197.0,0.21692463]
[1765543554590,0.01712,92200.0,92197.0,0.21692679]
[1765543554795,0.01712,92200.0,92198.0,0.21692306]
[1765543555258,0.0108461,92199.0,92195.0,0.001]
[1765543555439,0.01084622,92198.0,92195.0,0.01084657]
[1765543555630,0.22777251,92199.0,92197.0,0.001]
[1765543555828,0.2498879,92200.0,92197.0,0.001]
[1765543556201,0.2498879,92200.0,92197.0,0.01184633]
[1765543556562,0.2498879,92200.0,92197.0,0.22877161]
[1765543556750,0.2498879,92200.0,92197.0,0.01184633]
[1765543556901,0.24488652,92200.0,92197.0,0.2277726]
[1765543557104,0.24988652,92200.0,92198.0,0.001]
[1765543557307,0.02712,92200.0,92198.0,0.21692399]
[1765543557524,0.02212,92200.0,92198.0,0.21692399]
[1765543557725,0.02712,92200.0,92198.0,0.21692399]
[1765543557926,0.02212,92200.0,92198.0,0.21692399]
[1765543558144,0.01712,92200.0,92199.0,0.21692209]
[1765543558386,0.02712,92200.0,92198.0,0.21892356]
[1765543558675,0.02712,92200.0,92199.0,0.21692209]
[1765543559427,0.02212,92200.0,92199.0,0.21692209]
[1765543559874,0.02212,92200.0,92199.0,0.21792209]
[1765543560260,0.02712,92200.0,92199.0,0.21892209]
[1765543560876,0.01,92200.0,92199.0,0.21892209]
[1765543561664,0.01,92200.0,92199.0,0.23604209]
[1765543562652,0.005,92200.0,92199.0,0.23504209]
[1765543562809,0.005,92200.0,92199.0,0.23604209]
[1765543562991,0.01712,92205.0,92204.0,0.21691032]
[1765543564473,0.01712,92205.0,92204.0,0.21791032]
[1765543566881,0.14486145,92210.0,92207.0,0.22774615]
[1765543567094,0.21689636,92210.0,92207.0,0.22774615]
[1765543567325,0.01084469,92211.0,92208.0,0.21689964]
[1765543568001,0.01283283,92213.0,92209.0,0.21689812]
[1765543568204,0.21887873,92213.0,92210.0,0.01084481]
[1765543568404,0.22972318,92213.0,92210.0,0.22773915]
[1765543568743,0.21689268,92212.0,92210.0,0.01084481]
[1765543568888,0.22773725,92212.0,92209.0,0.22774297]
[1765543569090,0.01084457,92212.0,92209.0,0.22774297]
[1765543569291,0.001,92210.0,92209.0,0.22774297]
[1765543569697,0.21689688,92210.0,92208.0,0.01084504]
[1765543569879,0.22774047,92211.0,92208.0,0.22774592]
[1765543570081,0.01084469,92211.0,92208.0,0.22774592]
[1765543570334,0.22873672,92212.0,92209.0,0.22774128]
[1765543570650,0.01084457,92212.0,92209.0,0.22774128]
[1765543570831,0.22972251,92213.0,92210.0,0.22774054]
[1765543571479,0.22972251,92213.0,92210.0,0.01084481]
[1765543571625,0.22773745,92212.0,92208.0,0.01084504]
[1765543571840,0.22773745,92212.0,92208.0,0.22774398]
[1765543572211,0.22773745,92212.0,92209.0,0.21689813]
[1765543572407,0.22773745,92212.0,92208.0,0.22774398]
[1765543572607,0.21689536,92211.0,92208.0,0.22774398]
[1765543572922,0.21689829,92210.0,92207.0,0.2277443]
[1765543573165,0.21689829,92210.0,92208.0,0.21690037]
[1765543573166,0.2277431,92210.0,92208.0,0.21690037]
[1765543573460,0.227743,92210.0,92207.0,0.2277443]
[1765543573673,0.22773892,92211.0,92208.0,0.22774494]
[1765543573872,0.22873892,92211.0,92208.0,0.01084504]
[1765543574104,0.21689649,92210.0,92208.0,0.01084504]
[1765543574222,0.21689655,92210.0,92208.0,0.01084504]
[1765543574423,0.22773892,92211.0,92208.0,0.22774416]
[1765543574627,0.001,92210.0,92209.0,0.2168983]
[1765543575789,0.001,92210.0,92208.0,0.01084504]
[1765543575963,0.21689743,92210.0,92208.0,0.22774454]
[1765543576139,0.2168964,92210.0,92208.0,0.22774454]
[1765543576330,0.22873937,92211.0,92208.0,0.01084504]
[1765543576528,0.22873937,92211.0,92208.0,0.227744]
[1765543576880,0.22773937,92211.0,92208.0,0.227744]
[1765543577080,0.001,92210.0,92208.0,0.227744]
[1765543577431,0.22773937,92211.0,92208.0,0.227744]
[1765543577632,0.21689668,92210.0,92208.0,0.227744]
[1765543577853,0.22773937,92211.0,92208.0,0.227744]
[1765543578049,0.22873937,92211.0,92208.0,0.227744]
[1765543578747,0.001,92211.0,92210.0,0.21689621]
[1765543579362,0.22772713,92216.0,92213.0,0.2168881]
[1765543579519,0.22772713,92216.0,92214.0,0.21688662]
[1765543579727,0.01084422,92215.0,92212.0,0.22773549]
[1765543579936,0.22772998,92215.0,92212.0,0.22773549]
[1765543580539,0.22772998,92215.0,92212.0,0.00011687]
[1765543580738,0.22772998,92215.0,92212.0,0.21700783]
[1765543581288,0.22772998,92215.0,92212.0,0.2278524]
[1765543581441,0.21688685,92214.0,92212.0,0.2278524]
[1765543581605,0.22772998,92215.0,92212.0,0.2278524]
[1765543581812,0.21688682,92214.0,92212.0,0.2278524]
[1765543582011,0.21688682,92214.0,92212.0,0.00011687]
[1765543582217,0.21688757,92214.0,92212.0,0.21700781]
[1765543582456,0.21688757,92214.0,92212.0,0.00011687]
[1765543582457,0.21688915,92213.0,92212.0,0.00011687]
[1765543583252,0.24699915,92213.0,92212.0,0.00011687]
[1765543583476,0.25856915,92213.0,92212.0,0.00011687]
[1765543583857,0.30307314,92213.0,92212.0,0.00011687]
[1765543584060,0.30407314,92213.0,92212.0,0.00011687]
[1765543584260,0.26056915,92213.0,92212.0,0.00011687]
[1765543586314,0.21888915,92213.0,92212.0,0.00011687]
[1765543587619,0.23045915,92213.0,92212.0,0.00011687]
[1765543590537,0.21888915,92213.0,92212.0,0.00011687]
[1765543595243,0.002,92213.0,92212.0,0.00011687]
[1765543595445,0.21888915,92213.0,92212.0,0.02409687]
[1765543598690,0.21888915,92213.0,92212.0,0.00011687]
[1765543599655,0.21888915,92213.0,92212.0,0.02409687]
[1765543600491,0.21888915,92213.0,92212.0,0.00011687]
[1765543607839,0.21888915,92213.0,92212.0,0.02409687]
[1765543608803,0.002,92213.0,92212.0,0.24098838]
[1765543609859,0.01084386,92218.0,92216.0,0.21688151]
[1765543610071,0.01084398,92217.0,92213.0,0.02398]
[1765543610306,0.01084398,92217.0,92213.0,0.01084445]
[1765543610471,0.01084398,92217.0,92214.0,0.22773114]
[1765543610611,0.22772262,92218.0,92214.0,0.22773114]
[1765543610821,0.22772262,92218.0,92214.0,0.25171114]
[1765543611022,0.22872262,92218.0,92215.0,0.02398]
[1765543611429,0.22872262,92218.0,92215.0,0.21688291]
[1765543611643,0.22772262,92218.0,92216.0,0.21688185]
[1765543611849,0.21687975,92217.0,92215.0,0.03482422]
[1765543612129,0.21687975,92217.0,92215.0,0.01084422]
[1765543612358,0.22772262,92218.0,92215.0,0.22772809]
[1765543612586,0.21688101,92217.0,92215.0,0.01084422]
[1765543612976,0.22772473,92217.0,92214.0,0.22772958]
[1765543613178,0.227724,92217.0,92215.0,0.21688412]
[1765543613379,0.01084398,92217.0,92215.0,0.21688412]
[1765543614140,0.01184398,92217.0,92215.0,0.21688412]
[1765543614336,0.001,92217.0,92215.0,0.24086412]
[1765543614579,0.001,92217.0,92216.0,0.2330021]
[1765543614781,0.001,92217.0,92216.0,0.2569821]
[1765543616033,0.22771899,92219.0,92216.0,0.2569821]
[1765543616230,0.01084375,92219.0,92218.0,0.01612]
[1765543616480,0.22770896,92223.0,92220.0,0.22771416]
[1765543616737,0.22770896,92223.0,92222.0,0.01149]
[1765543618665,0.23070896,92223.0,92222.0,0.01149]
[1765543618878,0.22771495,92221.0,92218.0,0.01147]
[1765543619015,0.21687393,92220.0,92218.0,0.01147]
[1765543619772,0.01084351,92221.0,92218.0,0.01147]
[1765543620156,0.001,92220.0,92218.0,0.01147]
[1765543620339,0.002,92220.0,92218.0,0.01147]
[1765543620727,0.001,92220.0,92219.0,0.23229504]
[1765543621765,0.21687504,92219.0,92216.0,0.22772394]
[1765543621965,0.01084375,92219.0,92215.0,0.01084422]
[1765543622143,0.01084375,92219.0,92216.0,0.22772434]
[1765543622383,0.22772008,92219.0,92216.0,0.22772434]
[1765543622722,0.01084375,92219.0,92217.0,0.21687863]
[1765543623023,0.01084386,92218.0,92215.0,0.02368773]
[1765543623227,0.01084386,92218.0,92215.0,0.24057009]
[1765543623228,0.22772323,92218.0,92215.0,0.24057009]
[1765543623486,0.22872056,92219.0,92216.0,0.0108441]
[1765543623687,0.22872056,92219.0,92216.0,0.22772434]
[1765543624047,0.22772056,92219.0,92216.0,0.22772434]
[1765543624254,0.01284351,92228.0,92221.0,0.01084351]
[1765543624477,0.0108421,92233.0,92227.0,0.03637281]
[1765543624637,0.22768104,92235.0,92230.0,0.01084245]
[1765543624842,0.01084198,92234.0,92230.0,0.22769147]
[1765543625081,0.2276835,92234.0,92231.0,0.03255821]
[1765543625285,0.22767934,92235.0,92231.0,0.26024517]
[1765543625461,0.22767934,92235.0,92232.0,0.2276848]
[1765543625859,0.23367934,92235.0,92232.0,0.2276848]
[1765543626060,0.006,92235.0,92233.0,0.21684066]
[1765543626279,0.21683533,92236.0,92233.0,0.21684066]
[1765543626441,0.22767708,92236.0,92233.0,0.21684066]
[1765543626646,0.21683917,92235.0,92232.0,0.2276848]
[1765543627113,0.22767498,92237.0,92234.0,0.2276804]
[1765543627266,0.001,92235.0,92234.0,0.2276804]
[1765543627686,0.21683505,92237.0,92234.0,0.01084198]
[1765543627907,0.21683527,92236.0,92234.0,0.22768103]
[1765543628065,0.21683527,92236.0,92233.0,0.23872996]
[1765543628272,0.001,92235.0,92233.0,0.23872996]
[1765543628686,0.21783775,92235.0,92233.0,0.23872996]
[1765543628887,0.001,92235.0,92233.0,0.23873399]
[1765543629296,0.001,92235.0,92234.0,0.21683977]
[1765543630286,0.22767463,92237.0,92234.0,0.21683977]
[1765543630593,0.001,92236.0,92234.0,0.21683977]
[1765543631070,0.22767463,92237.0,92234.0,0.21683977]
[1765543631218,0.001,92235.0,92234.0,0.21683977]
[1765543631841,0.001,92236.0,92233.0,0.26024086]
[1765543632037,0.01184175,92236.0,92233.0,0.26024092]
[1765543632237,0.22767888,92236.0,92233.0,0.26024092]
[1765543632782,0.21783831,92235.0,92233.0,0.04339897]
[1765543632976,0.21783831,92235.0,92233.0,0.03255687]
[1765543633186,0.21783804,92235.0,92233.0,0.03255687]
[1765543633418,0.21683804,92235.0,92233.0,0.03255687]
[1765543633640,0.01084175,92236.0,92234.0,0.22830925]
[1765543633852,0.22767695,92236.0,92234.0,0.22830925]
[1765543634059,0.22767692,92236.0,92234.0,0.22830925]
[1765543634264,0.22767692,92236.0,92234.0,0.01147]
[1765543634472,0.01084128,92240.0,92234.0,0.23915166]
[1765543634677,0.21683009,92239.0,92234.0,0.23915166]
[1765543635156,0.001,92235.0,92234.0,0.23915166]
[1765543636090,0.22767228,92238.0,92234.0,0.23915166]
[1765543636296,0.01084151,92238.0,92235.0,0.22767887]
[1765543636717,0.22767297,92238.0,92234.0,0.22768166]
[1765543636883,0.22767893,92236.0,92233.0,0.03255665]
[1765543637096,0.2276748,92237.0,92233.0,0.26023916]
[1765543637302,0.2276748,92237.0,92234.0,0.001]
[1765543637679,0.2276748,92237.0,92233.0,0.26024044]
[1765543638288,0.01084163,92237.0,92234.0,0.22768036]
[1765543638512,0.2395814,92239.0,92235.0,0.22767727]
[1765543638715,0.001,92237.0,92235.0,0.22767727]
[1765543638939,0.2395814,92239.0,92235.0,0.22767727]
[1765543639371,0.01191,92239.0,92236.0,0.01084175]
[1765543639524,0.01191,92239.0,92238.0,0.21683037]
[1765543640663,0.01491,92239.0,92238.0,0.21683037]
[1765543641193,0.01191,92239.0,92238.0,0.21683037]
[1765543641512,0.01491,92239.0,92238.0,0.21783037]
[1765543642128,0.01791,92239.0,92238.0,0.001]
[1765543642343,0.006,92239.0,92238.0,0.21783037]
[1765543646850,0.006,92239.0,92238.0,0.001]
[1765543647089,0.006,92239.0,92238.0,0.21783037]
[1765543649399,0.006,92239.0,92238.0,0.001]
[1765543649604,0.006,92239.0,92238.0,0.21783037]
[1765543649943,0.006,92239.0,92238.0,0.001]
[1765543650098,0.006,92239.0,92238.0,0.21783037]
[1765543650510,0.006,92239.0,92238.0,0.001]
[1765543650755,0.006,92239.0,92238.0,0.21783037]
[1765543651431,0.006,92239.0,92238.0,0.001]
[1765543651639,0.006,92239.0,92238.0,0.21783037]
[1765543653327,0.006,92239.0,92238.0,0.001]
[1765543653522,0.22282802,92239.0,92238.0,0.001]
[1765543653930,0.006,92239.0,92238.0,0.001]
[1765543654416,0.22282802,92239.0,92238.0,0.001]
[1765543655069,0.006,92239.0,92238.0,0.001]
[1765543655855,0.006,92239.0,92238.0,0.21783037]
[1765543669854,0.006,92239.0,92238.0,0.001]
[1765543670424,0.22282802,92239.0,92238.0,0.001]
[1765543670898,0.006,92239.0,92238.0,0.001]
[1765543671198,0.006,92239.0,92238.0,0.21783037]
[1765543671701,0.006,92239.0,92238.0,0.001]
[1765543671845,0.16733201,92239.0,92238.0,0.001]
[1765543678539,0.22766226,92242.0,92238.0,0.001]
[1765543678772,0.01084116,92241.0,92238.0,0.22867177]
[1765543679063,0.2276646,92241.0,92238.0,0.22867177]
[1765543679268,0.2276646,92241.0,92239.0,0.21682725]
[1765543679269,0.22766467,92241.0,92239.0,0.21682725]
[1765543679428,0.22766467,92241.0,92238.0,0.22767177]
[1765543679848,0.01284116,92241.0,92239.0,0.21682726]
[1765543680449,0.22966614,92241.0,92238.0,0.22867177]
[1765543680763,0.23266614,92241.0,92238.0,0.22867177]
[1765543681074,0.01384116,92241.0,92239.0,0.21682723]
[1765543681434,0.007,92241.0,92239.0,0.21682723]
[1765543681627,0.007,92241.0,92238.0,0.22867177]
[1765543681628,0.003,92241.0,92238.0,0.22867177]
[1765543681853,0.23066492,92241.0,92238.0,0.001]
[1765543682056,0.01284116,92241.0,92239.0,0.21682752]
[1765543682215,0.002,92241.0,92239.0,0.21682752]
[1765543682415,0.006,92241.0,92239.0,0.21782752]
[1765543682845,0.004,92241.0,92240.0,0.21682567]
[1765543683766,0.01084093,92243.0,92241.0,0.21682289]
[1765543684066,0.01084093,92243.0,92241.0,0.21693976]
[1765543684283,0.01084069,92245.0,92242.0,0.01084104]
[1765543684501,0.01084069,92245.0,92243.0,0.21681781]
[1765543684846,0.22765666,92245.0,92242.0,0.01084104]
[1765543685051,0.22765468,92245.0,92241.0,0.01095803]
[1765543685248,0.21681862,92243.0,92241.0,0.00011687]
[1765543686285,0.22081862,92243.0,92241.0,0.00111687]
[1765543687426,0.004,92243.0,92241.0,0.21793953]
[1765543687777,0.008,92243.0,92241.0,0.21793953]
[1765543688178,0.008,92243.0,92242.0,0.21682097]
[1765543688358,0.008,92243.0,92241.0,0.00111687]
[1765543688984,0.22082047,92243.0,92241.0,0.00011687]
[1765543689137,0.22765759,92244.0,92241.0,0.01095803]
[1765543689345,0.22765499,92245.0,92242.0,0.01184104]
[1765543689853,0.22765499,92245.0,92242.0,0.01084104]
[1765543690365,0.005,92244.0,92242.0,0.01084104]
[1765543690684,0.22181673,92244.0,92242.0,0.2276615]
[1765543690832,0.21681673,92244.0,92242.0,0.2276615]
[1765543691029,0.004,92243.0,92242.0,0.2276615]
[1765543691606,0.01084069,92245.0,92242.0,0.2276615]
[1765543691911,0.004,92244.0,92242.0,0.22766019]
[1765543692160,0.2276584,92244.0,92241.0,0.00011687]
[1765543692370,0.21682097,92242.0,92241.0,0.00011687]
[1765543692818,0.22839097,92242.0,92241.0,0.00011687]
[1765543693873,0.23239097,92242.0,92241.0,0.00111687]
[1765543694937,0.23639097,92242.0,92241.0,0.00111687]
[1765543695145,0.22482097,92242.0,92241.0,0.00111687]
[1765543700223,0.32229171,92242.0,92241.0,0.00111687]
[1765543700438,0.25000371,92242.0,92241.0,0.00111687]
[1765543700651,0.2945077,92242.0,92241.0,0.00111687]
[1765543709372,0.22639371,92242.0,92241.0,0.00111687]
[1765543709974,0.25000371,92242.0,92241.0,0.00111687]
[1765543710316,0.008,92242.0,92241.0,0.24248019]
[1765543710699,0.008,92242.0,92241.0,0.28560817]
[1765543710886,0.56998971,92260.0,92241.0,0.28560817]
[1765543710887,0.0004,92260.0,92241.0,0.21794019]
[1765543711080,0.00223364,92270.0,92269.0,0.21675752]
[1765543711451,0.00223364,92270.0,92269.0,0.00901]
[1765543711785,0.00223364,92270.0,92269.0,0.03355]
[1765543712159,0.01083658,92280.0,92272.0,0.2167495]
[1765543712365,0.0003877,92280.0,92276.0,0.01083705]
[1765543712572,0.0003877,92280.0,92278.0,0.21673581]
[1765543712943,0.0003877,92280.0,92279.0,0.02454]
[1765543714525,0.0013877,92280.0,92279.0,0.02754]
[1765543714731,0.0013877,92280.0,92279.0,0.02454]
[1765543715212,0.0003877,92280.0,92279.0,0.02754]
[1765543715424,0.0003877,92280.0,92279.0,0.02654]
[1765543716209,0.0003877,92280.0,92279.0,0.24327403]
[1765543716787,0.0003877,92280.0,92279.0,0.25862403]
[1765543717389,0.0003877,92280.0,92279.0,0.26162403]
[1765543718009,0.0003877,92280.0,92279.0,0.25962403]
[1765543718436,0.0003877,92280.0,92279.0,0.26162403]
[1765543720795,0.0003877,92280.0,92279.0,0.005]
[1765543721043,0.21711938,92280.0,92279.0,0.005]
[1765543726629,0.0003877,92280.0,92279.0,0.22173403]
[1765543726831,0.0003877,92280.0,92279.0,0.02025]
[1765543727033,0.0003877,92280.0,92279.0,0.04446]
[1765543727637,0.0003877,92280.0,92279.0,0.26119403]
[1765543729433,0.0003877,92280.0,92279.0,0.30432201]
[1765543729648,0.0003877,92280.0,92279.0,0.26119403]
[1765543731552,0.0003877,92280.0,92279.0,0.2937302]
[1765543735592,0.0003877,92280.0,92279.0,0.07699617]
[1765543735788,0.21711938,92280.0,92279.0,0.005]
[1765543735986,0.22868938,92280.0,92279.0,0.005]
[1765543740413,0.21711938,92280.0,92279.0,0.005]
[1765543744870,0.21673873,92277.0,92276.0,0.0115]
[1765543746781,0.21673873,92277.0,92276.0,0.0165]
[1765543748106,0.21673873,92277.0,92276.0,0.04071]
[1765543748284,0.21673873,92277.0,92276.0,0.05596]
[1765543750297,0.21673873,92277.0,92276.0,0.11446052]
[1765543750511,0.34535808,92277.0,92276.0,0.06350052]
[1765543750735,0.34693082,92277.0,92276.0,0.005]
[1765543751111,0.30721082,92277.0,92276.0,0.005]
[1765543751296,0.21831147,92277.0,92276.0,0.003]
[1765543751732,0.21831147,92277.0,92276.0,0.004]
[1765543752556,0.21831147,92277.0,92276.0,0.001]
[1765543753054,0.21831147,92277.0,92276.0,0.002]
[1765543753281,0.21831147,92277.0,92276.0,0.001]
[1765543760555,0.24283147,92277.0,92276.0,0.001]
[1765543761116,0.21831147,92277.0,92276.0,0.001]
[1765543765427,0.21673684,92278.0,92276.0,0.001]
[1765543765428,0.0003877,92280.0,92279.0,0.21673403]
[1765543765657,0.0003877,92280.0,92279.0,0.29191037]
[1765543765861,0.0003877,92280.0,92278.0,0.21673425]
[1765543765862,0.0003877,92280.0,92278.0,0.06935069]
[1765543766070,0.0398,92279.0,92278.0,0.01083435]
[1765543766215,0.21674812,92273.0,92272.0,0.05851634]
[1765543766836,0.21674812,92273.0,92271.0,0.05851634]
[1765543767458,0.21674812,92273.0,92272.0,0.003]
[1765543767651,0.22758442,92274.0,92272.0,0.001]
[1765543769074,0.22758442,92274.0,92271.0,0.06051634]
[1765543769281,0.22758442,92274.0,92271.0,0.05851634]
[1765543769687,0.01083728,92274.0,92271.0,0.28610472]
[1765543770010,0.01083728,92274.0,92272.0,0.001]
[1765543770167,0.01083693,92277.0,92272.0,0.001]
[1765543770357,0.21674504,92275.0,92272.0,0.01083752]
[1765543770551,0.22757925,92276.0,92272.0,0.01083752]
[1765543771316,0.21674919,92273.0,92271.0,0.05851634]
[1765543771511,0.22758378,92274.0,92271.0,0.05851634]
[1765543771713,0.01083728,92274.0,92271.0,0.28610512]
[1765543772214,0.01083717,92275.0,92272.0,0.22758625]
[1765543772431,0.01083728,92274.0,92271.0,0.06935398]
[1765543772594,0.21674679,92274.0,92272.0,0.001]
[1765543772797,0.01083717,92275.0,92272.0,0.22758657]
[1765543772966,0.22757915,92276.0,92272.0,0.22758657]
[1765543773161,0.21674424,92275.0,92272.0,0.22758657]
[1765543773409,0.22758155,92275.0,92272.0,0.22858657]
[1765543773804,0.01083717,92275.0,92272.0,0.22758657]
[1765543774116,0.22757915,92276.0,92273.0,0.22758433]
[1765543774371,0.22757915,92276.0,92273.0,0.0108374]
[1765543774555,0.01083717,92275.0,92272.0,0.001]
[1765543774770,0.01083717,92275.0,92272.0,0.22858743]
[1765543775162,0.22758327,92275.0,92272.0,0.001]
[1765543775325,0.21674644,92274.0,92272.0,0.001]
[1765543775539,0.21674644,92274.0,92272.0,0.002]
[1765543775850,0.01083705,92276.0,92272.0,0.002]
[1765543776051,0.22757884,92276.0,92272.0,0.002]